bitfinex-derivatives/quotes_BTCF0:USTF0_20250429
["timestamp","ask_amount","ask_price","bid_price","bid_amount"]
[1745961868840,0.4127334,94433.0,94432.0,0.22132269]
[1745961869135,0.4137334,94433.0,94432.0,0.22132269]
[1745961869531,0.4137334,94433.0,94432.0,0.00958309]
[1745961871536,0.4127334,94433.0,94432.0,0.00958309]
[1745961871837,0.4137334,94433.0,94432.0,0.00958309]
[1745961874640,0.3078374,94433.0,94432.0,0.22132269]
[1745961874836,0.3078374,94433.0,94432.0,0.00958309]
[1745961877845,0.0961,94433.0,94432.0,0.22132269]
[1745961878336,0.0961,94433.0,94432.0,0.25162269]
[1745961879933,0.0632,94433.0,94432.0,0.25162269]
[1745961881843,0.2749374,94433.0,94432.0,0.22132269]
[1745961882435,0.2749374,94433.0,94432.0,0.25242269]
[1745961882634,0.0632,94433.0,94432.0,0.25242269]
[1745961883040,0.2749374,94433.0,94432.0,0.25242269]
[1745961884837,0.0632,94433.0,94432.0,0.25242269]
[1745961885631,0.0632,94433.0,94432.0,0.28322269]
[1745961886234,0.0632,94433.0,94432.0,0.35354269]
[1745961886436,0.2749374,94433.0,94432.0,0.32274269]
[1745961886642,0.0632,94433.0,94432.0,0.32274269]
[1745961887337,0.2749374,94433.0,94432.0,0.32274269]
[1745961888031,0.0632,94433.0,94432.0,0.32274269]
[1745961889043,0.7848,94433.0,94432.0,0.32274269]
[1745961889539,0.7838,94433.0,94432.0,0.32274269]
[1745961889746,0.7848,94433.0,94432.0,0.32274269]
[1745961892043,0.9965374,94433.0,94432.0,0.07990309]
[1745961892235,0.9965374,94433.0,94432.0,0.29164269]
[1745961892939,0.9955374,94433.0,94432.0,0.29164269]
[1745961893137,0.9965374,94433.0,94432.0,0.29164269]
[1745961893649,0.9955374,94433.0,94432.0,0.29164269]
[1745961893952,0.9965374,94433.0,94432.0,0.29164269]
[1745961894437,0.9965374,94433.0,94432.0,0.32474269]
[1745961895146,0.7838,94433.0,94432.0,0.32474269]
[1745961895349,0.9965374,94433.0,94432.0,0.32474269]
[1745961896346,0.7848,94433.0,94432.0,0.25442269]
[1745961896540,0.9965374,94433.0,94432.0,0.25442269]
[1745961896741,0.7848,94433.0,94432.0,0.25442269]
[1745961897150,0.9965374,94433.0,94432.0,0.25442269]
[1745961897747,0.9965374,94433.0,94432.0,0.04268309]
[1745961897943,0.9965374,94433.0,94432.0,0.22132269]
[1745961898951,0.9965374,94433.0,94432.0,0.25302269]
[1745961900357,0.7545,94433.0,94432.0,0.25302269]
[1745961900546,0.7545,94433.0,94432.0,0.28472269]
[1745961903850,0.7545,94433.0,94432.0,0.04128309]
[1745961903851,0.9662374,94433.0,94432.0,0.04128309]
[1745961904057,0.9662374,94433.0,94432.0,0.07990309]
[1745961904245,0.9662374,94433.0,94432.0,0.00958309]
[1745961904849,0.7545,94433.0,94432.0,0.22132269]
[1745961905050,0.9662374,94433.0,94432.0,0.22132269]
[1745961905354,0.9977374,94433.0,94432.0,0.22132269]
[1745961906239,0.9977374,94433.0,94432.0,0.00958309]
[1745961906446,0.786,94433.0,94432.0,0.00958309]
[1745961906754,0.786,94433.0,94432.0,0.22132269]
[1745961906946,0.9977374,94433.0,94432.0,0.00958309]
[1745961907448,0.9977374,94433.0,94432.0,0.22132269]
[1745961908248,0.786,94433.0,94432.0,0.22132269]
[1745961908956,0.9977374,94433.0,94432.0,0.22132269]
[1745961909252,1.0293374,94433.0,94432.0,0.22132269]
[1745961910649,0.8176,94433.0,94432.0,0.22132269]
[1745961912457,0.8176,94433.0,94432.0,0.29152269]
[1745961912859,0.786,94433.0,94432.0,0.29152269]
[1745961913258,0.9977374,94433.0,94432.0,0.29152269]
[1745961913460,0.786,94433.0,94432.0,0.29152269]
[1745961914260,0.9977374,94433.0,94432.0,0.07978309]
[1745961914460,0.9977374,94433.0,94432.0,0.29152269]
[1745961916659,0.786,94433.0,94432.0,0.29152269]
[1745961916860,0.9977374,94433.0,94432.0,0.29152269]
[1745961917460,0.9977374,94433.0,94432.0,0.32192269]
[1745961921955,0.9977374,94433.0,94432.0,0.25172269]
[1745961922161,0.9977374,94433.0,94432.0,0.32192269]
[1745961922465,0.0529423,94419.0,94413.0,0.22425021]
[1745961922768,0.2118091,94401.0,94400.0,0.1]
[1745961922969,0.5726091,94401.0,94400.0,0.1]
[1745961924158,0.5736091,94401.0,94400.0,0.10793045]
[1745961924461,0.8236091,94401.0,94400.0,0.03681718]
[1745961924662,0.8343341,94401.0,94400.0,0.03681718]
[1745961924963,0.2118249,94394.0,94393.0,0.38536028]
[1745961925164,0.9870249,94394.0,94393.0,0.23795262]
[1745961925359,0.2118428,94386.0,94377.0,0.22828655]
[1745961925667,0.5726428,94386.0,94377.0,0.22828655]
[1745961925858,0.5726428,94386.0,94377.0,0.28125225]
[1745961926060,0.7985908,94386.0,94377.0,0.22828655]
[1745961926267,0.7985908,94386.0,94385.0,0.44080664]
[1745961926489,1.0485908,94386.0,94385.0,0.40010664]
[1745961927059,1.0495908,94386.0,94385.0,0.40010664]
[1745961927356,1.2149908,94386.0,94385.0,0.61195174]
[1745961927554,1.003148,94386.0,94385.0,0.61195174]
[1745961927755,0.8972,94386.0,94385.0,0.74350195]
[1745961928169,0.7772,94386.0,94385.0,0.74350195]
[1745961928365,0.7772,94386.0,94385.0,0.41287018]
[1745961928557,0.7762,94386.0,94385.0,0.41287018]
[1745961928963,0.7772,94386.0,94385.0,0.41287018]
[1745961930664,0.9890428,94386.0,94385.0,0.41287018]
[1745961930864,0.7772,94386.0,94385.0,0.20102508]
[1745961931165,0.9890428,94386.0,94385.0,0.20102508]
[1745961931872,0.5746428,94386.0,94385.0,0.20102508]
[1745961932363,0.5746428,94386.0,94385.0,0.20209939]
[1745961932669,0.5736428,94386.0,94385.0,0.20209939]
[1745961932861,0.5746428,94386.0,94385.0,0.20102508]
[1745961933063,0.5746428,94386.0,94385.0,0.20244695]
[1745961933565,0.5746428,94386.0,94385.0,0.20279451]
[1745961934075,0.5746428,94386.0,94385.0,0.20314207]
[1745961934568,0.5746428,94386.0,94385.0,0.41533473]
[1745961934772,0.5746428,94386.0,94385.0,0.20348963]
[1745961935066,0.2138428,94386.0,94385.0,0.20348963]
[1745961935275,0.9354428,94386.0,94385.0,0.20383719]
[1745961935667,0.9354428,94386.0,94385.0,0.20102508]
[1745961935867,0.9354428,94386.0,94385.0,0.20418475]
[1745961940770,0.9354428,94386.0,94385.0,0.20453303]
[1745961941567,0.9344428,94386.0,94385.0,0.20453303]
[1745961941780,0.7236,94386.0,94385.0,0.48653813]
[1745961941966,0.3608,94410.0,94385.0,0.49909082]
[1745961942170,0.3608,94410.0,94407.0,0.0529484]
[1745961942373,0.3608,94410.0,94409.0,0.13155021]
[1745961942672,0.3608,94410.0,94409.0,0.34334141]
[1745961942874,0.3109,94410.0,94409.0,0.41054936]
[1745961943268,0.262,94410.0,94409.0,0.41054936]
[1745961943663,0.261,94410.0,94409.0,0.41054936]
[1745961943975,0.262,94410.0,94409.0,0.41054936]
[1745961944872,0.263,94410.0,94409.0,0.41054936]
[1745961947076,0.3628,94410.0,94409.0,0.41054936]
[1745961947777,0.0015,94415.0,94414.0,0.21178]
[1745961947979,0.0015,94415.0,94414.0,0.34683816]
[1745961948989,0.0025,94415.0,94414.0,0.34783816]
[1745961949474,0.0025,94415.0,94414.0,0.37793816]
[1745961950379,0.0035,94415.0,94414.0,0.38093816]
[1745961951380,0.0035,94415.0,94414.0,0.48685416]
[1745961953375,0.3608,94435.0,94422.0,0.13155021]
[1745961953571,0.3608,94435.0,94434.0,0.34328531]
[1745961953772,0.3608,94435.0,94434.0,0.41344531]
[1745961954073,0.3608,94435.0,94434.0,0.41695326]
[1745961954480,0.3608,94444.0,94443.0,0.211715]
[1745961954873,0.001,94446.0,94445.0,0.2117105]
[1745961955073,0.3618,94446.0,94445.0,0.21521845]
[1745961955376,0.3618,94446.0,94445.0,0.3547531]
[1745961956501,0.3628,94446.0,94445.0,0.3557531]
[1745961956781,0.002,94446.0,94445.0,0.3557531]
[1745961956971,0.002,94446.0,94445.0,0.3567531]
[1745961960383,0.3608,94456.0,94449.0,0.0529253]
[1745961960688,0.3608,94456.0,94455.0,0.34323831]
[1745961961188,0.3608,94456.0,94455.0,0.34674626]
[1745961961677,0.3608,94456.0,94455.0,0.37934626]
[1745961962074,0.3638,94456.0,94455.0,0.37934626]
[1745961962278,0.3648,94456.0,94455.0,0.37934626]
[1745961962474,0.3618,94456.0,94455.0,0.37934626]
[1745961962680,0.3658,94456.0,94455.0,0.38034626]
[1745961962874,0.3648,94456.0,94455.0,0.38034626]
[1745961963186,0.3608,94464.0,94455.0,0.38034626]
[1745961963187,0.01065582,94475.0,94471.0,0.2116495]
[1745961963391,0.2116477,94473.0,94472.0,0.27345]
[1745961963883,0.2116477,94473.0,94472.0,0.0618]
[1745961964279,0.2116477,94473.0,94472.0,0.06530795]
[1745961964782,0.2156477,94473.0,94472.0,0.06630795]
[1745961965487,0.2156477,94473.0,94472.0,0.27795795]
[1745961966190,0.2216477,94473.0,94472.0,0.27895795]
[1745961967189,0.01,94473.0,94472.0,0.41050816]
[1745961968788,0.4144,94481.0,94475.0,0.13155021]
[1745961969091,0.2131212,94485.0,94484.0,0.2116231]
[1745961969293,0.2131212,94485.0,94484.0,0.34668126]
[1745961969590,0.2131208,94485.0,94484.0,0.34668126]
[1745961969790,0.2131208,94485.0,94484.0,0.41118126]
[1745961970182,0.0015,94485.0,94484.0,0.41118126]
[1745961970388,0.2131208,94485.0,94484.0,0.41118126]
[1745961970600,0.0015,94485.0,94484.0,0.41118126]
[1745961971388,0.0025,94485.0,94484.0,0.41118126]
[1745961971889,0.0045,94485.0,94484.0,0.41118126]
[1745961973682,0.4144,94492.0,94491.0,0.2116074]
[1745961973987,0.4144,94492.0,94491.0,0.41323761]
[1745961974388,0.001,94536.0,94509.0,0.13155021]
[1745961974590,0.01193894,94555.0,94546.0,0.2114843]
[1745961974897,0.0015,94555.0,94546.0,0.5722843]
[1745961975085,0.0015,94555.0,94554.0,0.2114664]
[1745961975291,0.2129642,94555.0,94554.0,0.3608]
[1745961975589,0.5687242,94555.0,94554.0,0.37237581]
[1745961975790,0.9295242,94555.0,94554.0,0.01157581]
[1745961975986,0.9295242,94555.0,94554.0,0.00350795]
[1745961976191,0.9295242,94555.0,94539.0,0.3608]
[1745961976192,0.0528737,94542.0,94526.0,0.2115273]
[1745961976392,0.211509,94535.0,94527.0,0.0323]
[1745961976594,0.2115092,94535.0,94530.0,0.0528797]
[1745961976793,0.0528766,94537.0,94527.0,0.0323]
[1745961976990,0.2115116,94534.0,94527.0,0.0323]
[1745961977190,0.12,94537.0,94527.0,0.0323]
[1745961977389,0.2115128,94534.0,94533.0,0.2115134]
[1745961977795,0.5672968,94534.0,94533.0,0.2115134]
[1745961977999,0.3172968,94534.0,94533.0,0.2115134]
[1745961978202,0.4372968,94534.0,94533.0,0.2115134]
[1745961978496,0.225784,94534.0,94533.0,0.2115134]
[1745961978898,0.4372952,94534.0,94533.0,0.2115134]
[1745961979401,0.2115223,94529.0,94528.0,0.3678]
[1745961979600,0.2115223,94529.0,94528.0,0.58043801]
[1745961980299,0.3315223,94529.0,94528.0,0.58043801]
[1745961981595,0.3315223,94529.0,94528.0,0.58543801]
[1745961981992,0.3315223,94529.0,94528.0,0.59043801]
[1745961983191,0.4373103,94529.0,94528.0,0.01811341]
[1745961983395,0.2115402,94521.0,94520.0,0.3608]
[1745961983787,0.3173362,94521.0,94520.0,0.3608]
[1745961984197,0.4373362,94521.0,94520.0,0.3608]
[1745961984402,0.4373362,94521.0,94520.0,0.36881347]
[1745961984788,0.4383362,94521.0,94520.0,0.37481347]
[1745961985194,0.4373362,94521.0,94520.0,0.37381347]
[1745961985700,0.4373362,94521.0,94520.0,0.36881347]
[1745961985906,0.4383362,94521.0,94520.0,0.37881347]
[1745961986594,0.4373362,94521.0,94520.0,0.37681347]
[1745961987501,0.4373362,94521.0,94520.0,0.37481347]
[1745961987900,0.4373362,94521.0,94520.0,0.36881347]
[1745961988100,0.4373362,94521.0,94520.0,0.37281347]
[1745961988503,0.44795168,94521.0,94520.0,0.61335597]
[1745961988707,0.44795168,94521.0,94520.0,0.61535597]
[1745961989504,0.44795168,94521.0,94520.0,0.61635597]
[1745961989706,0.44795168,94521.0,94520.0,0.25555597]
[1745961990097,0.44795168,94521.0,94520.0,0.04401347]
[1745961990701,0.44795168,94521.0,94520.0,0.04201347]
[1745961990903,0.44795168,94521.0,94520.0,0.04301347]
[1745961991101,0.44795168,94521.0,94520.0,0.01101347]
[1745961991402,0.2115805,94503.0,94490.0,0.21319598]
[1745961991607,0.2116052,94492.0,94491.0,0.0327]
[1745961991792,0.5724052,94492.0,94491.0,0.0327]
[1745961991993,0.6782332,94492.0,94491.0,0.0327]
[1745961992503,0.6782332,94492.0,94491.0,0.04082431]
[1745961993101,0.211641,94476.0,94475.0,0.00105848]
[1745961993598,0.211641,94476.0,94475.0,0.13260869]
[1745961994394,0.211641,94476.0,94475.0,0.14053522]
[1745961994703,0.212641,94476.0,94475.0,0.14553522]
[1745961995104,0.211641,94476.0,94475.0,0.14053522]
[1745961995405,0.212641,94476.0,94475.0,0.14553522]
[1745961995793,0.212641,94476.0,94475.0,0.14453522]
[1745961996193,0.213641,94476.0,94475.0,0.15053522]
[1745961996997,0.213641,94476.0,94475.0,0.14853522]
[1745961997903,0.212641,94476.0,94475.0,0.14453522]
[1745961998100,0.213641,94476.0,94475.0,0.01698501]
[1745961998494,0.21165,94472.0,94471.0,0.0307]
[1745961999706,0.21265,94472.0,94471.0,0.04347378]
[1745962000894,0.21365,94472.0,94471.0,0.04747378]
[1745962002106,0.319502,94472.0,94471.0,0.04747378]
[1745962002595,0.2116881,94455.0,94454.0,0.0332]
[1745962003006,0.2116881,94455.0,94454.0,0.16475021]
[1745962003202,0.2116881,94455.0,94454.0,0.22695021]
[1745962003406,0.35587201,94455.0,94442.0,0.13155021]
[1745962003607,0.35587201,94455.0,94402.0,0.06469471]
[1745962003608,0.3608,94427.0,94402.0,0.06469471]
[1745962003906,0.2118608,94378.0,94377.0,2e-08]
[1745962004206,0.2118742,94372.0,94371.0,0.00955683]
[1745962004406,0.2118742,94372.0,94371.0,0.0015894]
[1745962004594,0.2118742,94372.0,94363.0,0.3608]
[1745962004595,0.2118922,94364.0,94363.0,0.3608]
[1745962004801,0.21197339,94364.0,94363.0,0.3608]
[1745962005099,0.21197339,94364.0,94363.0,0.5726944]
[1745962006209,0.21197339,94364.0,94363.0,0.58069992]
[1745962006514,0.21297339,94364.0,94363.0,0.59179354]
[1745962007108,0.00108119,94364.0,94363.0,0.62429354]
[1745962007299,0.00108119,94364.0,94363.0,0.65469354]
[1745962007607,0.00208119,94364.0,94363.0,0.65669354]
[1745962011114,0.21397339,94364.0,94363.0,0.6577401]
[1745962012309,0.21397339,94364.0,94363.0,0.4458457]
[1745962012612,0.21397339,94364.0,94363.0,0.44619471]
[1745962012809,0.00208119,94364.0,94363.0,0.65808911]
[1745962013714,0.00208119,94364.0,94363.0,0.65843725]
[1745962014411,0.00208119,94364.0,94363.0,0.65878539]
[1745962014911,0.21397339,94364.0,94363.0,0.65878539]
[1745962015910,0.21397339,94364.0,94363.0,0.65913353]
[1745962017001,0.00208119,94364.0,94363.0,0.65669354]
[1745962017208,0.21397339,94364.0,94363.0,0.65948167]
[1745962017409,0.00208119,94364.0,94363.0,0.65948167]
[1745962017810,0.00208119,94364.0,94363.0,0.65982981]
[1745962018510,0.00208119,94364.0,94363.0,0.66017795]
[1745962019110,0.00208119,94364.0,94363.0,0.29937795]
[1745962020210,0.00208119,94364.0,94363.0,0.29972595]
[1745962020413,0.0529622,94384.0,94363.0,0.29972595]
[1745962020414,0.2118393,94388.0,94363.0,0.43570993]
[1745962020611,0.3608,94402.0,94374.0,0.3608]
[1745962020807,0.3608,94404.0,94390.0,0.3608]
[1745962021009,0.0529428,94418.0,94405.0,0.2117946]
[1745962021307,0.2117867,94411.0,94410.0,0.00418041]
[1745962022116,0.0529468,94411.0,94406.0,0.0636]
[1745962022316,0.2647335,94411.0,94410.0,0.00452841]
[1745962023314,0.2647335,94411.0,94410.0,0.28121741]
[1745962023824,0.2647335,94411.0,94410.0,0.28156533]
[1745962024122,0.2777335,94411.0,94410.0,0.28356533]
[1745962024425,0.013,94411.0,94410.0,0.28356533]
[1745962024614,0.2247867,94411.0,94410.0,0.28356533]
[1745962024816,0.013,94411.0,94410.0,0.20201298]
[1745962025217,0.0015,94415.0,94414.0,0.21178]
[1745962025816,0.0015,94415.0,94414.0,0.21735217]
[1745962026216,0.2132777,94415.0,94414.0,0.21735217]
[1745962026515,0.0015,94415.0,94414.0,0.21735217]
[1745962027010,0.0015,94415.0,94414.0,0.21870009]
[1745962027213,0.0015,94415.0,94414.0,0.22070009]
[1745962027626,0.0015,94415.0,94414.0,0.21970009]
[1745962027828,0.2132777,94415.0,94414.0,0.22070009]
[1745962028017,0.2132777,94415.0,94414.0,0.22104801]
[1745962028728,0.2132777,94415.0,94414.0,0.28424801]
[1745962029026,0.2132777,94415.0,94414.0,0.28459593]
[1745962029829,0.2132777,94415.0,94414.0,0.28559593]
[1745962030024,0.2132777,94415.0,94414.0,0.29337375]
[1745962030219,0.2132777,94415.0,94414.0,0.29354912]
[1745962032124,0.0015,94415.0,94414.0,0.29354912]
[1745962033821,0.3608,94426.0,94417.0,0.0529431]
[1745962034016,0.2117688,94419.0,94418.0,0.2432653]
[1745962034324,0.2117594,94427.0,94426.0,0.2117452]
[1745962034929,0.2117594,94427.0,94426.0,0.0646]
[1745962035128,0.2117594,94427.0,94426.0,0.14135114]
[1745962035426,0.2117594,94427.0,94426.0,0.14814244]
[1745962035626,0.2117459,94430.0,94429.0,0.2117441]
[1745962036222,0.3926,94437.0,94434.0,0.2117351]
[1745962036223,0.3608,94437.0,94434.0,0.2117351]
[1745962036529,0.3608,94437.0,94436.0,0.2117306]
[1745962036826,0.5725284,94437.0,94436.0,0.2117306]
[1745962037527,0.2117329,94435.0,94434.0,0.001]
[1745962037825,0.2117329,94435.0,94434.0,0.2127351]
[1745962038024,0.2117329,94435.0,94434.0,0.2117351]
[1745962038727,0.2117329,94435.0,94434.0,0.2744351]
[1745962039625,0.2147329,94435.0,94434.0,0.2754351]
[1745962040025,0.2177329,94435.0,94434.0,0.2754351]
[1745962042318,0.006,94435.0,94434.0,0.2754351]
[1745962042931,0.2177329,94435.0,94434.0,0.2754351]
[1745962043532,0.2177329,94435.0,94434.0,0.2434351]
[1745962043828,0.006,94435.0,94434.0,0.2434351]
[1745962044328,0.2177329,94435.0,94434.0,0.2434351]
[1745962046128,0.006,94435.0,94434.0,0.2434351]
[1745962049929,0.006,94435.0,94434.0,0.2762351]
[1745962052333,0.2177329,94435.0,94434.0,0.2762351]
[1745962054022,0.2177329,94435.0,94434.0,0.3463151]
[1745962063930,0.006,94435.0,94434.0,0.3463151]
[1745962064339,0.2177329,94435.0,94434.0,0.3463151]
[1745962086746,0.006,94435.0,94434.0,0.3463151]
[1745962087055,0.2177329,94435.0,94434.0,0.3463151]
[1745962090748,0.2117329,94435.0,94434.0,0.3463151]
[1745962090953,0.2117329,94435.0,94434.0,0.3473151]
[1745962092343,0.2117329,94435.0,94434.0,0.3483151]
[1745962094449,0.2646623,94437.0,94436.0,0.2117306]
[1745962095765,0.2646623,94437.0,94436.0,0.2127306]
[1745962095957,0.2117301,94437.0,94436.0,0.2127306]
[1745962096153,0.2117301,94437.0,94436.0,0.2137306]
[1745962098762,0.2418246,94439.0,94438.0,0.2117262]
[1745962098959,0.0314,94440.0,94439.0,0.2117239]
[1745962099157,0.0319,94449.0,94445.0,0.2117105]
[1745962099352,0.0015,94450.0,94449.0,0.2117015]
[1745962100854,0.0025,94450.0,94449.0,0.2117015]
[1745962101459,0.0055,94450.0,94449.0,0.2117015]
[1745962102059,0.0025,94450.0,94449.0,0.2117015]
[1745962102255,0.08009428,94457.0,94446.0,0.0329]
[1745962102449,0.4144,94482.0,94446.0,0.0329]
[1745962102450,0.0528991,94496.0,94456.0,0.3608]
[1745962102658,0.0302,94482.0,94472.0,0.21165]
[1745962102862,0.08005287,94480.0,94475.0,0.2116432]
[1745962103259,0.08005287,94480.0,94475.0,0.22817521]
[1745962103452,0.06369413,94480.0,94479.0,0.2116343]
[1745962103660,0.06369413,94480.0,94479.0,0.22816631]
[1745962104367,0.06369413,94480.0,94479.0,0.26006631]
[1745962105361,0.06869413,94480.0,94479.0,0.26106631]
[1745962105563,0.06869413,94480.0,94479.0,0.23016631]
[1745962105564,0.07369413,94480.0,94479.0,0.23016631]
[1745962106858,0.01,94480.0,94479.0,0.23016631]
[1745962107570,0.0743,94480.0,94479.0,0.23016631]
[1745962108265,0.0733,94480.0,94479.0,0.2136343]
[1745962108862,0.0713,94480.0,94479.0,0.2136343]
[1745962109172,0.0693,94480.0,94479.0,0.2126343]
[1745962109472,0.0683,94480.0,94479.0,0.2116343]
[1745962110676,0.0683,94480.0,94479.0,0.21952287]
[1745962113167,0.0361,94480.0,94479.0,0.21952287]
[1745962113364,0.0361,94480.0,94479.0,0.23517118]
[1745962114265,0.004,94480.0,94479.0,0.23517118]
[1745962114871,0.0015,94485.0,94484.0,0.2116231]
[1745962115068,0.0325,94492.0,94491.0,0.2116074]
[1745962115264,0.0325,94492.0,94491.0,0.22725571]
[1745962115666,0.2441052,94492.0,94491.0,0.22725571]
[1745962115871,0.0325,94492.0,94491.0,0.29215571]
[1745962116573,0.0375,94492.0,94491.0,0.29315571]
[1745962117068,0.0375,94492.0,94491.0,0.29355448]
[1745962117270,0.1,94500.0,94499.0,0.2115895]
[1745962117460,0.3115873,94500.0,94499.0,0.22763658]
[1745962117965,0.3115873,94500.0,94499.0,0.22723362]
[1745962118165,0.3115873,94500.0,94499.0,0.22723365]
[1745962118471,0.3155873,94500.0,94499.0,0.22823494]
[1745962118671,0.105,94500.0,94499.0,0.22823494]
[1745962118971,0.1356,94500.0,94499.0,0.22823486]
[1745962119171,0.1356,94500.0,94499.0,0.22823461]
[1745962119368,0.1356,94500.0,94499.0,0.2893363]
[1745962119764,0.1356,94500.0,94499.0,0.28933384]
[1745962119964,0.1356,94500.0,94499.0,0.28933385]
[1745962120278,0.1356,94500.0,94499.0,0.28933596]
[1745962120574,0.3471873,94500.0,94499.0,0.28833598]
[1745962121067,0.3471873,94500.0,94499.0,0.2726895]
[1745962121274,0.3471873,94500.0,94499.0,0.28833598]
[1745962121473,0.3471873,94500.0,94499.0,0.28833824]
[1745962121870,0.3471873,94500.0,94499.0,0.28833826]
[1745962122471,0.3471873,94500.0,94499.0,0.6491412]
[1745962122670,0.1356,94500.0,94499.0,0.64914112]
[1745962123061,0.105,94500.0,94499.0,0.64914112]
[1745962123263,0.105,94500.0,94499.0,0.6334895]
[1745962123472,0.105,94500.0,94499.0,0.64914439]
[1745962124561,0.105,94500.0,94499.0,0.64914379]
[1745962124864,0.105,94500.0,94499.0,0.64914034]
[1745962126474,0.105,94500.0,94499.0,0.64914204]
[1745962126677,0.3165873,94500.0,94499.0,0.64914204]
[1745962126867,0.105,94500.0,94499.0,0.64914204]
[1745962127473,0.001,94506.0,94505.0,0.2115761]
[1745962127673,0.001,94506.0,94505.0,0.22722864]
[1745962128173,0.001,94506.0,94505.0,0.29202864]
[1745962128774,0.003,94506.0,94505.0,0.29202864]
[1745962128978,0.003,94506.0,94505.0,0.29188588]
[1745962129180,0.00267351,94530.0,94505.0,0.43612177]
[1745962129381,0.0528698,94549.0,94535.0,0.2115089]
[1745962129679,0.2114692,94553.0,94548.0,0.0528699]
[1745962129885,0.0634,94552.0,94551.0,0.2114731]
[1745962130176,0.0634,94552.0,94549.0,0.0643]
[1745962130386,0.0634,94552.0,94551.0,0.2114731]
[1745962130976,0.0634,94552.0,94551.0,0.21949129]
[1745962131181,0.1834,94552.0,94551.0,0.21949129]
[1745962131379,0.1516,94552.0,94551.0,0.21949129]
[1745962131685,0.1536,94552.0,94551.0,0.21949129]
[1745962132078,0.002,94552.0,94551.0,0.21949129]
[1745962132578,0.2643071,94565.0,94562.0,0.0528621]
[1745962132883,0.2963071,94565.0,94564.0,0.2114418]
[1745962133080,0.12,94565.0,94564.0,0.37637029]
[1745962133273,0.12,94565.0,94564.0,0.85716239]
[1745962133677,0.12,94565.0,94564.0,2.35716239]
[1745962134080,0.032,94579.0,94578.0,0.2114128]
[1745962134279,0.032,94579.0,94578.0,0.22698309]
[1745962134872,0.032,94579.0,94578.0,0.29058309]
[1745962135077,0.152,94579.0,94578.0,0.2750128]
[1745962135278,0.152,94579.0,94578.0,0.29046039]
[1745962136389,0.12,94579.0,94578.0,0.04614759]
[1745962136600,0.3314105,94579.0,94578.0,0.25756039]
[1745962136987,0.12,94579.0,94578.0,0.25756039]
[1745962137287,0.1527,94579.0,94578.0,0.25756039]
[1745962138487,0.12,94579.0,94578.0,0.25756039]
[1745962139084,0.0349,94580.0,94579.0,0.2114105]
[1745962139384,0.0349,94580.0,94579.0,0.29945809]
[1745962140289,0.0359,94580.0,94579.0,0.29945809]
[1745962140477,0.001,94580.0,94579.0,0.29945809]
[1745962141179,0.122,94580.0,94579.0,0.29945809]
[1745962141575,0.121,94580.0,94579.0,0.29945809]
[1745962141781,0.121,94580.0,94579.0,0.30045809]
[1745962141997,0.121,94580.0,94579.0,0.30152432]
[1745962142297,0.0342,94584.0,94583.0,0.2114016]
[1745962142477,0.0342,94584.0,94583.0,0.22791542]
[1745962143090,0.1542,94584.0,94583.0,0.22791542]
[1745962143386,0.1542,94584.0,94583.0,0.22768416]
[1745962143587,0.1542,94584.0,94583.0,0.2114016]
[1745962144285,0.2070498,94584.0,94579.0,0.001]
[1745962144482,0.2114083,94580.0,94579.0,0.001]
[1745962144689,0.2114284,94572.0,94570.0,0.0528572]
[1745962144882,0.2458284,94571.0,94570.0,0.2642878]
[1745962145188,0.0701,94571.0,94561.0,0.3608]
[1745962145386,0.0528601,94566.0,94561.0,0.07972]
[1745962145584,0.2114485,94562.0,94561.0,0.07972]
[1745962145781,0.2114621,94556.0,94555.0,0.2114642]
[1745962145985,0.2114577,94558.0,94557.0,0.2114548]
[1745962146188,0.2114642,94555.0,94554.0,0.07972]
[1745962146483,0.0528632,94560.0,94550.0,0.0528688]
[1745962146687,0.2114709,94552.0,94550.0,0.0368]
[1745962146890,0.2114709,94552.0,94551.0,0.22099207]
[1745962147196,0.12,94552.0,94551.0,0.22099207]
[1745962147383,0.3314709,94552.0,94551.0,0.00951897]
[1745962147589,0.3671709,94552.0,94551.0,0.00951897]
[1745962147782,0.1557,94552.0,94551.0,0.22099207]
[1745962147983,0.3671709,94552.0,94551.0,0.22099207]
[1745962148179,0.3671709,94552.0,94551.0,0.00951897]
[1745962148586,0.3671709,94552.0,94551.0,0.01951897]
[1745962148789,0.1557,94552.0,94551.0,0.23099207]
[1745962149180,0.1557,94552.0,94551.0,0.22999207]
[1745962149379,0.3671709,94552.0,94551.0,0.22999207]
[1745962149586,0.36733762,94552.0,94551.0,0.22999207]
[1745962149787,0.36733762,94552.0,94551.0,0.01851897]
[1745962152088,0.36733762,94552.0,94551.0,0.01751897]
[1745962153693,0.36733762,94552.0,94551.0,0.22899207]
[1745962153894,0.36733762,94552.0,94551.0,0.01751897]
[1745962156091,0.36733762,94552.0,94507.0,0.21498151]
[1745962156092,0.2115358,94523.0,94507.0,0.21498151]
[1745962156293,0.5723358,94523.0,94522.0,0.00941121]
[1745962156890,0.6426358,94523.0,94522.0,0.00941121]
[1745962157094,0.7626358,94523.0,94522.0,0.00941121]
[1745962157691,0.7636358,94523.0,94522.0,0.01941121]
[1745962158394,0.7636358,94523.0,94522.0,0.01541121]
[1745962159694,0.7646358,94523.0,94522.0,0.02341121]
[1745962160286,0.7646358,94523.0,94522.0,0.01941121]
[1745962161187,0.7636358,94523.0,94522.0,0.22694921]
[1745962161385,0.7636358,94523.0,94522.0,0.01941121]
[1745962161991,0.7636358,94523.0,94522.0,0.01841121]
[1745962162695,0.7626358,94523.0,94522.0,0.00941121]
[1745962162897,0.7636358,94523.0,94522.0,0.01941121]
[1745962164291,0.7636358,94523.0,94522.0,0.01841121]
[1745962166197,0.6436358,94523.0,94522.0,0.01841121]
[1745962168203,0.7636358,94523.0,94522.0,0.01841121]
[1745962168798,0.7636358,94523.0,94522.0,0.01341121]
[1745962169102,0.7636358,94523.0,94522.0,0.01841121]
[1745962170200,0.6436358,94523.0,94522.0,0.01841121]
[1745962171202,0.7636358,94523.0,94522.0,0.01841121]
[1745962173300,0.6436358,94523.0,94522.0,0.01841121]
[1745962173898,0.6436358,94523.0,94522.0,0.01941121]
[1745962174608,0.6426358,94523.0,94522.0,0.01441121]
[1745962174801,0.6436358,94523.0,94522.0,0.01941121]
[1745962175000,0.6436358,94523.0,94522.0,0.01441121]
[1745962175199,0.6436358,94523.0,94522.0,0.01941121]
[1745962175407,0.6094358,94523.0,94522.0,0.01941121]
[1745962175705,0.5733358,94523.0,94522.0,0.01841121]
[1745962175900,0.3618,94523.0,94522.0,0.22994921]
[1745962176109,0.3608,94523.0,94522.0,0.22494921]
[1745962176295,0.3618,94523.0,94522.0,0.22894921]